bitfinex-derivatives/quotes_ETHF0:USTF0_20251103
["timestamp","ask_amount","ask_price","bid_price","bid_amount"]
[1762180923907,3.4374,3713.1,3713.0,0.00283684]
[1762180924310,1.34579,3714.0,3713.0,0.00283684]
[1762180924311,3.2078,3713.5,3713.0,0.00283684]
[1762180924515,3.2078,3713.9,3713.0,0.48770684]
[1762180925011,0.2296,3712.6,3712.1,1.91930646]
[1762180925211,0.2296,3712.0,3711.6,0.1378]
[1762180925416,0.2296,3712.0,3711.2,5.12710646]
[1762180925907,0.23171752,3712.0,3711.2,5.12909428]
[1762180926110,3.2078,3711.8,3711.2,0.00198782]
[1762180926711,3.2078,3711.8,3711.4,0.48508]
[1762180926908,3.2078,3711.8,3711.3,3.2078]
[1762180927311,3.2078,3711.8,3711.6,0.48505]
[1762180928112,3.2078,3711.8,3711.7,0.48504]
[1762180928318,0.00211752,3712.0,3711.8,0.48502]
[1762180928518,0.00211752,3712.0,3711.6,0.1378]
[1762180928718,0.00211752,3712.0,3711.3,3.2078]
[1762180928719,0.2296,3711.4,3711.3,3.2078]
[1762180929027,3.2078,3711.8,3711.4,0.48508]
[1762180929223,3.2078,3711.8,3711.3,3.2078]
[1762180929621,3.2078,3711.8,3711.3,3.69289]
[1762180929827,3.2078,3711.8,3711.4,0.48508]
[1762180929828,0.2296,3711.5,3711.4,0.48508]
[1762180930732,3.2078,3711.8,3711.3,3.69289]
[1762180930924,3.2078,3711.8,3711.4,0.48508]
[1762180931124,3.2078,3711.8,3711.5,0.48506]
[1762180931325,0.00211752,3712.0,3711.8,0.48502]
[1762180931617,0.00211752,3712.0,3711.3,3.2078]
[1762180931817,0.00211752,3712.0,3711.7,0.48504]
[1762180932022,0.2296,3711.8,3711.7,0.48504]
[1762180932728,0.2296,3711.8,3711.6,0.48505]
[1762180934122,0.2296,3711.8,3711.3,3.69289]
[1762180934429,0.2296,3711.4,3711.2,0.00198782]
[1762180934923,0.2236,3710.8,3710.4,3.2078]
[1762180935520,3.2078,3711.4,3711.0,0.48512]
[1762180935734,3.2078,3711.8,3711.4,0.48508]
[1762180936434,3.2078,3711.8,3711.2,0.4851]
[1762180936628,3.2078,3711.8,3711.5,0.48506]
[1762180937024,3.3417,3712.2,3711.7,0.48503]
[1762180937332,3.3417,3712.2,3711.2,3.2078]
[1762180937828,0.1263,3712.8,3711.9,0.2295]
[1762180938928,9.42415909,3713.0,3711.9,0.2295]
[1762180940233,3.2078,3712.6,3711.9,0.2295]
[1762180940437,3.2078,3712.6,3711.6,3.3481]
[1762180940438,0.2236,3711.8,3711.6,3.2078]
[1762180940923,3.2078,3712.2,3711.6,3.2078]
[1762180941128,3.2078,3712.2,3711.6,3.3481]
[1762180941732,3.2078,3712.2,3711.6,3.83315]
[1762180941927,3.2078,3712.2,3711.7,0.48503]
[1762180942132,3.2078,3712.2,3711.6,3.83315]
[1762180942439,0.48503,3711.8,3711.6,3.2078]
[1762180942740,3.2078,3712.2,3711.6,3.2078]
[1762180943436,0.2236,3711.7,3711.6,3.2078]
[1762180944435,1.21255,3711.9,3711.2,3.2078]
[1762180944642,0.48509,3711.4,3711.2,3.2078]
[1762180945135,3.2078,3712.2,3711.2,3.2078]
[1762180945440,0.48504,3711.7,3711.3,0.48509]
[1762180945739,3.2078,3711.6,3711.0,0.14371773]
[1762180946037,3.2078,3712.1,3711.5,0.48506]
[1762180946231,0.48503,3711.8,3711.5,0.48506]
[1762180946542,0.48503,3711.8,3711.2,3.2078]
[1762180946735,0.48503,3711.8,3711.3,0.4851]
[1762180946936,3.2078,3712.1,3711.3,0.4851]
[1762180947138,3.2078,3712.1,3711.6,0.48505]
[1762180947331,6.21635909,3713.0,3711.6,0.48505]
[1762180947332,3.2078,3712.6,3711.6,3.3481]
[1762180947540,9.42415909,3713.0,3711.9,0.71452]
[1762180947733,3.2078,3713.0,3712.8,0.354]
[1762180947937,0.48487,3713.0,3712.6,0.48492]
[1762180948336,3.3348,3713.4,3712.4,3.2078]
[1762180948537,0.48486,3713.1,3712.8,0.1317]
[1762180948737,0.48487,3713.0,3712.8,0.1317]
[1762180949042,0.00205535,3713.1,3712.8,0.1317]
[1762180949242,0.00205535,3713.1,3713.0,0.2223]
[1762180949841,3.2078,3713.8,3713.0,0.2223]
[1762180950038,3.69253,3714.2,3713.7,0.48478]
[1762180950237,3.69253,3714.2,3713.4,0.1317]
[1762180950238,3.2078,3714.2,3713.4,0.1317]
[1762180950438,0.48475,3714.0,3713.4,0.1317]
[1762180950747,0.4848,3713.6,3713.4,0.1317]
[1762180950942,0.4877806,3713.6,3713.4,0.13465056]
[1762180951341,0.4877806,3713.6,3713.4,0.00295056]
[1762180951844,0.0029806,3713.6,3713.4,0.00295056]
[1762180952144,0.4877806,3713.6,3713.4,0.00295056]
[1762180952540,0.0029806,3713.6,3713.5,0.2223]
[1762180952742,0.4877806,3713.6,3713.4,0.00295056]
[1762180953440,0.4877806,3713.6,3712.7,2.40421646]
[1762180953441,0.2339,3713.0,3712.4,3.2078]
[1762180953634,4.42014,3712.6,3711.6,5.75245646]
[1762180953839,1.33836,3712.8,3711.8,0.48503]
[1762180953840,3.2078,3712.2,3711.8,0.48503]
[1762180954038,3.69278,3712.2,3711.8,0.48503]
[1762180954244,3.69278,3712.2,3712.1,0.2223]
[1762180954646,3.69278,3712.2,3712.1,0.22460268]
[1762180955036,3.2078,3712.2,3712.1,0.22460268]
[1762180956036,3.2078,3712.8,3712.2,0.1317]
[1762180957740,3.2078,3712.8,3712.1,0.00230268]
[1762180957741,0.3678,3712.2,3712.1,0.00230268]
[1762180958538,0.3678,3712.2,3711.0,0.61683]
[1762180958846,3.2078,3711.8,3711.1,0.48512]
[1762180959448,3.2078,3711.8,3711.0,0.1317]
[1762180959644,3.2078,3711.8,3711.1,0.00293034]
[1762180960351,3.2078,3711.8,3711.1,0.48804034]
[1762180960840,3.2078,3711.8,3711.1,0.00293034]
[1762180961245,3.2078,3711.2,3711.1,0.00293034]
[1762180961451,3.4417,3711.2,3711.1,0.00293034]
[1762180961950,0.1201,3711.6,3711.1,0.71035034]
[1762180961951,3.2078,3711.6,3711.1,0.71035034]
[1762180962148,3.2078,3711.6,3711.2,0.48511]
[1762180962337,3.2078,3711.6,3711.5,0.2223]
[1762180962645,3.2078,3711.6,3711.1,0.00293034]
[1762180963241,3.2078,3711.6,3711.1,0.48804034]
[1762180963643,3.2078,3711.6,3711.2,0.48511]
[1762180964447,3.2078,3711.6,3711.1,0.00293034]
[1762180964853,3.69281,3712.0,3711.1,0.00293034]
[1762180965050,3.69281,3712.0,3711.3,0.48508]
[1762180965249,3.69281,3712.0,3711.1,3.21073034]
[1762180965250,0.48503,3711.8,3711.1,3.21073034]
[1762180965449,0.48502,3711.9,3711.2,0.48511]
[1762180965650,0.48502,3711.9,3711.3,0.48509]
[1762180965847,3.2078,3712.0,3711.6,0.1386]
[1762180966054,3.2078,3712.0,3711.9,0.237]
[1762180966556,1.33837,3712.8,3711.9,0.237]
[1762180966557,3.2078,3712.4,3711.9,0.237]
[1762180966746,0.48497,3712.3,3711.9,0.237]
[1762180966950,0.48497,3712.3,3711.6,0.1386]
[1762180967159,3.2078,3712.4,3711.8,0.48503]
[1762180967657,0.48497,3712.3,3711.8,0.48503]
[1762180967955,3.2078,3712.4,3711.8,0.48503]
[1762180968155,3.2078,3712.4,3711.6,1.35123]
[1762180968753,3.2078,3712.4,3712.0,0.485]
[1762180968952,0.48496,3712.3,3711.6,0.62364]
[1762180969148,3.2078,3712.4,3711.7,0.48504]
[1762180969351,3.2078,3712.4,3711.9,0.485]
[1762180969751,3.2078,3712.4,3711.7,1.21261]
[1762180969952,0.222,3712.2,3711.5,3.69286]
[1762180970153,0.222,3712.2,3711.5,3.2078]
[1762180970452,0.222,3712.2,3712.1,0.48499]
[1762180970657,3.2078,3712.4,3712.1,0.48499]
[1762180971051,3.2078,3712.4,3712.2,0.1386]
[1762180971360,3.3339,3712.8,3712.3,0.48495]
[1762180971556,0.485,3712.1,3711.9,3.2078]
[1762180971751,3.2078,3712.4,3711.9,3.2078]
[1762180971752,0.222,3712.0,3711.9,3.2078]
[1762180973567,0.222,3712.0,3711.7,0.48504]
[1762180973869,3.2078,3712.4,3711.6,0.1386]
[1762180974259,3.2078,3712.4,3711.9,0.48501]
[1762180974462,3.2078,3712.4,3711.6,0.1386]
[1762180974463,3.2078,3712.4,3711.7,1.21261]
[1762180974665,3.2078,3712.4,3712.0,0.62359]
[1762180974972,3.2078,3712.4,3712.2,0.48497]
[1762180975472,3.2078,3712.4,3712.0,0.62359]
[1762180975672,3.2078,3712.4,3712.1,0.48499]
[1762180975864,0.222,3712.1,3711.6,0.1386]
[1762180976070,3.2078,3712.4,3712.0,0.1386]
[1762180976270,0.48491,3712.7,3712.1,0.48499]
[1762180976574,3.3339,3712.8,3712.0,0.62359]
[1762180976775,3.3339,3712.8,3712.0,0.1386]
[1762180977565,0.48492,3712.6,3712.1,0.48499]
[1762180977871,0.48493,3712.6,3712.1,0.48499]
[1762180978074,0.48494,3712.5,3712.0,0.1386]
[1762180978272,3.3339,3712.8,3712.1,0.48499]
[1762180978567,0.48498,3712.3,3712.0,0.1386]
[1762180978773,3.2078,3712.4,3712.0,0.1386]
[1762180978974,3.2078,3712.4,3712.1,0.48499]
[1762180979368,3.69275,3712.4,3712.0,0.1386]
[1762180979577,3.2078,3712.4,3712.0,0.1386]
[1762180979774,3.2078,3712.4,3712.1,0.48498]
[1762180980073,3.2078,3712.4,3711.6,0.1386]
[1762180980374,0.48498,3712.3,3711.8,0.48503]
[1762180980575,0.48498,3712.2,3711.8,0.48503]
[1762180980771,0.485,3712.1,3711.6,0.62365]
[1762180980976,3.2078,3712.4,3711.6,0.1386]
[1762180981172,0.222,3711.7,3711.5,3.83147]
[1762180981377,0.222,3711.7,3711.5,3.3464]
[1762180981575,0.222,3711.7,3711.5,3.83146]
[1762180981875,0.222,3711.6,3711.2,1.91930646]
[1762180982070,0.222,3711.6,3711.3,0.48508]
[1762180982271,0.222,3711.6,3711.5,0.48507]
[1762180982476,3.2078,3712.0,3711.9,0.237]
[1762180982871,3.2078,3712.4,3711.5,0.1386]
[1762180983167,0.1261,3712.8,3711.7,0.48503]
[1762180983168,3.2078,3712.3,3711.7,0.48503]
[1762180983367,3.2078,3712.3,3712.2,0.237]
[1762180983573,3.3339,3712.8,3712.2,0.237]
[1762180983768,0.26767121,3712.7,3712.2,0.72197]
[1762180983969,3.2078,3712.8,3712.7,0.237]
[1762180984171,0.0029806,3713.6,3713.5,0.86041]
[1762180984371,3.2078,3714.3,3713.5,3.3464]
[1762180984568,3.2078,3714.3,3714.1,0.48472]
[1762180984971,3.2078,3714.3,3714.0,0.62334]
[1762180985174,2.20512935,3714.3,3714.2,0.237]
[1762180985383,3.2078,3715.3,3714.5,0.48466]
[1762180985573,3.21027734,3715.3,3714.5,0.48466]
[1762180985876,0.00247734,3715.3,3715.2,3.2078]
[1762180986968,0.1261,3716.4,3715.6,0.48452]
[1762180987177,0.1261,3716.4,3715.6,3.69232]
[1762180987479,0.1261,3716.4,3715.6,3.2078]
[1762180987873,0.222,3715.7,3715.2,0.1386]
[1762180988181,0.22537382,3715.7,3715.2,0.1386]
[1762180988373,0.00337382,3715.7,3715.2,0.1386]
[1762180988773,3.2078,3715.6,3715.2,0.1386]
[1762180988975,3.2078,3715.6,3714.7,3.2078]
[1762180989278,0.48462,3715.0,3714.9,0.237]
[1762180989478,0.48464,3714.9,3714.7,3.2078]
[1762180989776,3.2078,3715.6,3714.8,0.72163]
[1762180989975,0.48790382,3715.7,3714.6,0.1386]
[1762180989976,0.00337382,3715.7,3715.1,3.2078]
[1762180990174,0.00337382,3715.7,3715.0,0.48461]
[1762180990375,0.48454,3715.6,3715.0,0.48461]
[1762180990576,0.00337382,3715.7,3715.2,0.1386]
[1762180990882,0.00337382,3715.7,3715.2,0.62317]
[1762180991073,0.00337382,3715.7,3715.2,0.1386]
[1762180991276,0.00337382,3715.7,3715.4,0.48455]
[1762180991474,0.00337382,3715.7,3715.3,0.48457]
[1762180991674,0.00337382,3715.7,3715.2,0.1386]
[1762180992176,0.48790382,3715.7,3715.2,0.1386]
[1762180992579,0.00337382,3715.7,3715.2,0.62318]
[1762180992776,0.00337382,3715.7,3715.2,0.1386]
[1762180992979,0.00337382,3715.7,3715.3,0.48456]
[1762180993275,0.00337382,3715.7,3715.2,0.1386]
[1762180993478,0.48790382,3715.7,3715.2,0.1386]
[1762180994482,0.00337382,3715.7,3715.1,3.2078]
[1762180994679,0.71078,3715.2,3715.1,3.2078]
[1762180995183,0.2262,3715.2,3715.1,3.2078]
[1762180995978,0.00337382,3715.7,3715.1,3.2078]
[1762180996187,0.48458,3715.3,3715.1,3.2078]
[1762180996380,0.2262,3715.2,3715.1,3.2078]
[1762180997281,0.48462,3715.0,3714.7,3.2078]
[1762180997583,0.2262,3714.8,3714.7,3.2078]
[1762180998288,0.48469,3714.4,3714.3,3.2078]
[1762180998588,0.71089,3714.4,3714.3,3.2078]
[1762180999088,3.2078,3714.9,3714.4,0.48469]
[1762180999285,3.2078,3715.3,3714.7,0.48464]
[1762180999585,3.2078,3715.3,3714.6,0.62256]
[1762180999981,3.2078,3715.3,3714.7,0.48465]
[1762181000181,0.127,3715.2,3714.3,3.2078]
[1762181000789,0.2262,3714.4,3714.3,3.2078]
[1762181002186,3.2078,3714.9,3714.3,3.2078]
[1762181002388,3.2078,3714.9,3714.3,3.69249]
[1762181003089,3.2078,3714.9,3714.3,3.2078]
[1762181003587,3.2078,3715.3,3714.5,0.1379]
[1762181003991,3.2078,3715.3,3714.6,0.48466]
[1762181004186,3.2078,3715.3,3714.7,0.48464]
[1762181004387,3.2078,3715.3,3714.6,0.48466]
[1762181004587,3.2078,3715.3,3714.5,0.1379]
[1762181004787,3.2078,3715.3,3714.5,0.62257]
[1762181004989,3.2078,3715.3,3714.5,0.1379]
[1762181005184,3.2078,3714.9,3714.5,0.1379]
[1762181006291,3.2078,3715.3,3714.5,0.1379]
[1762181006492,3.2078,3715.3,3714.7,0.48464]
[1762181006797,0.48462,3714.9,3714.8,0.2194]
[1762181007891,3.2078,3715.3,3714.5,0.1379]
[1762181008299,3.2078,3715.3,3714.6,0.48466]
[1762181008597,1.21147,3715.2,3714.6,0.48466]
[1762181008793,0.48466,3714.6,3714.5,0.3583]
[1762181008987,0.70939,3714.4,3714.3,3.2078]
[1762181009188,0.2247,3714.4,3714.3,3.2078]
[1762181009387,0.1198,3715.0,3714.3,3.4282]
[1762181009598,1.33839,3715.5,3714.5,0.1418]
[1762181009793,0.48464,3714.8,3714.7,0.2204]
[1762181009994,3.2078,3715.3,3714.7,0.70505]
[1762181010201,3.2078,3715.3,3714.5,0.1418]
[1762181010401,3.2078,3715.3,3715.1,0.4846]
[1762181010593,3.2078,3715.3,3715.2,0.70498]
[1762181010796,0.48456,3715.4,3715.3,0.2204]
[1762181010998,0.00337382,3715.7,3715.3,0.2204]
[1762181011196,0.00337382,3715.7,3715.1,3.2078]
[1762181011395,0.48458,3715.3,3715.1,3.2078]
[1762181011602,0.70928,3715.2,3715.1,3.2078]
[1762181011999,0.48458,3715.2,3715.1,3.2078]
[1762181012900,0.4846,3715.1,3715.0,0.1418]
[1762181013202,0.4846,3715.1,3715.0,0.3622]
[1762181013898,4.42250382,3715.7,3715.0,0.1418]
[1762181014101,0.26369498,3715.6,3715.0,0.1418]
[1762181014400,0.4846,3715.1,3715.0,0.3622]
[1762181015098,3.21117382,3715.7,3715.0,0.8468]
[1762181015400,0.74829953,3715.6,3715.5,0.3622]
[1762181015997,0.26376953,3715.6,3715.5,0.84675]
[1762181016197,0.48453,3715.6,3715.5,0.3622]
[1762181016597,0.48456,3715.4,3715.3,3.2078]
[1762181017199,0.48459,3715.2,3715.1,0.2204]
[1762181017601,0.48457,3715.4,3715.1,0.2204]
[1762181018093,0.2247,3715.1,3714.8,3.2078]
[1762181018299,1.21137,3715.5,3714.8,3.2078]
[1762181018602,0.48461,3715.0,3714.9,0.2204]
[1762181020002,0.4846,3715.1,3715.0,0.1418]
[1762181020202,0.4846,3715.1,3715.0,0.3622]
[1762181020603,0.48462,3714.9,3714.8,3.2078]
[1762181020804,0.48462,3714.9,3714.8,3.4282]
[1762181021002,3.2078,3715.5,3714.8,3.4282]
[1762181021298,0.7094,3714.3,3714.2,0.00215641]
[1762181021498,0.2247,3713.5,3713.0,3.3496]
[1762181021698,3.2078,3714.5,3713.5,0.1418]
[1762181021901,0.26380691,3714.4,3714.0,0.62654]
[1762181022102,3.2078,3714.9,3714.2,0.2204]
[1762181022400,0.26384514,3714.8,3714.2,3.43021555]
[1762181022604,0.26384514,3714.7,3714.2,3.20981555]
[1762181022800,3.3276,3715.0,3714.2,3.20981555]
[1762181023002,0.8913545,3714.9,3714.2,3.20981555]
[1762181023203,0.2638621,3714.8,3714.2,3.20981555]
[1762181023502,0.48468,3714.5,3714.2,3.20981555]
[1762181024014,0.2247,3714.3,3714.2,3.20981555]
[1762181024305,3.3276,3715.0,3714.2,3.20981555]
[1762181024504,0.48471,3714.4,3714.2,3.20981555]
[1762181024906,3.2078,3715.0,3714.4,0.4847]
[1762181025105,0.7529345,3714.9,3714.5,0.1366]
[1762181025306,0.48464,3714.9,3714.7,3.4305]
[1762181025807,0.48462,3715.1,3714.7,3.4305]
[1762181026008,0.26831649,3715.0,3714.7,3.4305]
[1762181026214,0.26831649,3714.9,3714.7,3.4305]
[1762181026411,0.48462,3715.1,3714.7,3.4305]
[1762181026704,0.26832747,3715.0,3714.7,3.4305]
[1762181026910,0.48463,3715.0,3714.7,3.4305]
[1762181027109,0.48464,3714.9,3714.7,3.4305]
[1762181027311,0.48465,3714.8,3714.7,3.2078]
[1762181027609,0.72515,3714.8,3714.7,3.2078]
[1762181027810,0.2405,3714.8,3714.7,3.2078]
[1762181028111,3.2078,3715.4,3714.7,3.69246]
[1762181028314,0.89653233,3715.3,3714.7,3.69246]
[1762181028604,0.48462,3715.0,3714.9,0.2227]
[1762181028810,0.75295142,3715.0,3714.9,0.2227]
[1762181029301,0.48464,3714.9,3714.7,3.4305]
[1762181030208,3.2078,3715.4,3715.0,0.62122]
[1762181030408,0.26836001,3715.3,3715.0,0.1366]
[1762181030607,3.2078,3715.4,3715.0,0.62122]
[1762181030904,0.4846,3715.2,3715.1,0.2227]
[1762181031099,0.48459,3715.3,3715.1,0.2227]
[1762181031704,0.4846,3715.2,3715.1,0.2227]
[1762181031904,0.48465,3714.8,3714.7,3.2078]
[1762181032303,0.48464,3714.9,3714.7,3.2078]
[1762181032708,4.41926,3715.4,3714.7,3.2078]
[1762181032709,0.72515,3714.8,3714.7,3.2078]
[1762181033206,0.48465,3714.8,3714.7,3.2078]
[1762181033411,0.48465,3714.8,3714.7,3.4305]
[1762181034013,3.2078,3715.4,3714.7,3.4305]
[1762181034214,0.48463,3715.0,3714.9,0.2227]
[1762181035207,3.2078,3715.4,3714.7,3.4305]
[1762181035510,0.48464,3715.0,3714.7,3.91516]
[1762181035707,0.48465,3714.8,3714.7,3.4305]
[1762181037304,0.72515,3714.8,3714.7,3.2078]
[1762181037509,0.48465,3714.8,3714.7,3.2078]
[1762181037809,3.2078,3715.4,3714.8,0.2227]
[1762181038015,2.10855027,3715.3,3714.8,0.2227]
[1762181038216,0.48464,3714.9,3714.8,0.2227]
[1762181040217,0.48463,3715.0,3714.9,0.2227]
[1762181040613,0.48468,3714.7,3714.6,0.2227]
[1762181040915,0.2405,3714.6,3714.3,3.69252]
[1762181041314,0.4847,3714.5,3714.4,0.2227]
[1762181042109,0.118,3715.0,3714.4,0.2227]
[1762181042315,0.118,3715.0,3714.3,3.2078]
[1762181042316,0.48461,3715.2,3715.1,0.2227]
[1762181042614,0.75310865,3715.2,3715.1,0.2227]
[1762181043811,0.00337382,3715.7,3715.1,3.91511]
[1762181044116,0.75306485,3715.6,3715.5,0.3593]
[1762181045212,0.72511,3715.1,3714.7,5.1304711]
[1762181045413,0.72515,3714.8,3714.7,3.2078]
[1762181046319,0.48465,3714.8,3714.7,3.4305]
[1762181048019,1.21122,3716.1,3715.6,0.2227]
[1762181048216,0.27195268,3715.7,3715.6,0.2227]
[1762181048517,0.75648268,3715.7,3715.6,0.2227]
[1762181050115,0.48455,3715.6,3715.5,0.1366]
[1762181050514,0.48461,3715.1,3715.0,0.84392]
[1762181050818,0.48464,3714.9,3714.8,3.2078]
[1762181051222,0.48464,3714.9,3714.8,3.4305]
[1762181052515,0.72514,3714.9,3714.8,3.2078]
[1762181053218,0.9936756,3714.9,3714.8,3.2078]
[1762181053816,0.48464,3714.9,3714.8,3.4305]
[1762181054212,0.48468,3714.6,3714.5,0.1366]
[1762181055919,0.2297,3714.3,3714.2,0.00201555]
[1762181056222,0.98323819,3714.3,3714.2,0.00201555]
[1762181059223,0.49851819,3714.3,3714.2,0.00201555]
[1762181059422,3.2078,3714.6,3714.2,0.22111555]
[1762181059823,3.2078,3714.6,3714.2,0.70584555]
[1762181060023,3.2078,3714.6,3714.2,0.22111555]
[1762181061228,0.2297,3714.3,3714.2,0.00201555]
[1762181063225,0.49796675,3714.3,3714.2,0.00201555]
[1762181063528,7.229118,3714.3,3714.2,0.00201555]
[1762181063729,0.497918,3714.3,3714.2,0.00201555]
[1762181064329,0.982638,3714.3,3714.2,0.00201555]
[1762181066930,0.71442,3714.3,3714.2,0.00201555]
[1762181067832,0.48487,3713.1,3713.0,3.5813]
[1762181068831,0.4878256,3713.1,3713.0,3.58420784]
[1762181069830,0.0029556,3713.1,3713.0,4.06909784]
[1762181070035,5.63134,3714.4,3713.0,4.06909784]
[1762181070036,1.21184,3714.2,3713.9,0.2369]
[1762181070231,0.48476,3714.0,3713.9,0.2369]
[1762181070423,0.48481,3713.6,3713.5,0.3729]
[1762181070628,0.48487,3713.2,3713.1,0.2369]
[1762181070826,0.48484,3713.4,3713.2,0.72176]
[1762181071133,0.48692315,3713.4,3713.3,0.2369]
[1762181071935,0.00208315,3713.4,3713.3,0.72175]
[1762181072130,0.48691315,3713.4,3713.3,0.2369]
[1762181072330,0.00208315,3713.4,3713.3,0.72175]
[1762181073431,0.48474,3714.1,3714.0,0.3729]
[1762181074335,0.48671026,3714.1,3714.0,0.3729]
[1762181075030,0.22967026,3714.1,3714.0,0.3729]
[1762181075238,0.48671026,3714.1,3714.0,0.3729]
[1762181075538,0.00197026,3714.1,3714.0,4.06546]
[1762181076433,3.69242,3715.0,3714.9,0.2369]
[1762181076632,0.48468,3714.6,3714.5,0.3729]
[1762181077034,0.48473,3714.2,3714.1,9.9639]
[1762181077439,0.48813999,3714.2,3714.1,9.9639]
[1762181077840,0.48813999,3714.2,3714.1,0.2369]
[1762181078034,0.00340999,3714.2,3714.1,0.2369]
[1762181078338,0.48813999,3714.2,3714.1,0.2369]
[1762181079743,0.00340999,3714.2,3714.1,0.72164]
[1762181081541,0.48465,3714.8,3714.7,0.2369]
[1762181082643,0.4880696,3714.8,3714.7,0.2369]
[1762181085036,0.0034196,3714.8,3714.7,0.72156]
[1762181085340,0.0034196,3714.8,3714.7,3.92936]
[1762181085537,3.2078,3716.2,3716.1,0.2384]
[1762181085842,0.48443,3716.5,3716.4,0.2384]
[1762181086145,3.2078,3716.6,3716.5,0.3828]
[1762181086547,3.21036557,3716.6,3716.5,0.38613866]
[1762181087642,3.21036557,3716.6,3716.5,0.00333866]
[1762181088144,3.21036557,3716.6,3716.5,0.38613866]
[1762181088842,3.2078,3717.4,3717.1,0.48436]
[1762181089043,0.48427,3717.8,3717.3,0.72273]
[1762181089339,0.48429,3717.7,3717.6,0.2384]
[1762181089546,0.48427,3717.8,3717.6,0.2384]
[1762181089939,0.48650601,3717.8,3717.6,0.2384]
[1762181090334,0.00223601,3717.8,3717.6,0.2384]
[1762181090743,0.48651601,3717.8,3717.6,0.2384]
[1762181090943,0.00223601,3717.8,3717.7,0.2384]
[1762181092143,0.48429,3717.7,3717.5,0.1444]
[1762181092445,0.48434,3717.3,3717.1,3.2078]
[1762181092641,0.48434,3717.3,3717.1,7.6142]
[1762181092839,0.71644,3717.3,3717.1,3.2078]
[1762181093033,0.71644,3717.3,3717.1,7.6688]
[1762181093640,0.48434,3717.3,3717.1,7.6688]
[1762181094242,0.48434,3717.3,3717.1,3.2078]
[1762181094646,0.48443,3716.7,3716.6,3.4462]
[1762181094836,0.48443,3716.7,3716.6,11.9082]
[1762181095438,0.48443,3716.7,3716.6,3.4462]
[1762181095642,0.48444,3716.6,3716.4,9.713]
[1762181095847,0.48444,3716.6,3716.5,0.38613866]
[1762181096444,0.71654,3716.6,3716.5,0.00333866]
[1762181097544,0.48444,3716.6,3716.5,0.14773866]
[1762181097741,0.48444,3716.6,3716.5,0.38613866]
[1762181098145,0.48444,3716.6,3716.5,0.00333866]
[1762181099648,3.2078,3717.2,3716.5,0.00333866]
[1762181099848,0.48444,3716.6,3716.5,0.00333866]
[1762181100050,0.71654,3716.6,3716.5,0.00333866]
[1762181100249,0.71659,3716.2,3716.1,0.57807]
[1762181100449,0.48462,3715.2,3715.1,3.2078]
[1762181100954,3.2078,3715.7,3715.5,0.1444]
[1762181101155,0.48457,3715.6,3715.5,0.1444]
[1762181101349,3.2078,3715.7,3715.5,0.38483152]
[1762181101550,3.2078,3716.2,3716.0,0.1444]
[1762181101756,3.2078,3717.3,3716.5,0.1444]
[1762181101950,3.2078,3717.3,3716.5,5.0654]
[1762181102551,3.2078,3717.3,3717.0,0.1444]
[1762181103454,3.2078,3717.3,3716.5,0.1444]
[1762181103958,3.2078,3716.9,3716.5,0.1444]
[1762181104153,3.2078,3716.9,3716.0,0.1444]
[1762181104355,3.2078,3716.4,3716.0,0.1444]
[1762181104562,3.2078,3716.9,3716.4,0.1444]
[1762181105460,3.2078,3717.4,3716.4,3.3522]
[1762181105669,0.00223601,3717.8,3716.4,3.3522]
[1762181105670,3.2078,3716.9,3716.4,0.1444]
[1762181106158,3.2078,3716.9,3716.4,0.62886]
[1762181106364,3.2078,3717.3,3716.5,0.48445]
[1762181106560,3.2078,3717.3,3716.4,0.1444]
[1762181106760,3.2078,3717.3,3716.5,0.48445]
[1762181106962,3.2078,3716.9,3716.5,0.48445]
[1762181107163,3.2078,3716.9,3716.4,0.1444]
[1762181107761,3.69221,3716.9,3716.7,0.48442]
[1762181108062,3.2078,3716.9,3716.7,0.2384]
[1762181108263,0.48441,3716.8,3716.7,0.2384]
[1762181108665,0.4844,3716.9,3716.7,0.2384]
[1762181108859,0.48441,3716.8,3716.7,0.2384]
[1762181109260,3.69214,3717.4,3717.2,0.2384]
[1762181109459,0.48431,3717.6,3717.3,0.2384]
[1762181109664,0.00223601,3717.8,3717.6,0.1444]
[1762181109869,0.00223601,3717.8,3717.7,0.2384]
[1762181110259,0.48422,3718.3,3718.2,0.1444]
[1762181110462,3.2078,3718.7,3718.2,0.1444]
[1762181110766,0.48421,3718.4,3718.2,0.1444]
[1762181111166,3.2078,3718.3,3717.6,3.3522]
[1762181111367,3.20983213,3718.3,3717.6,3.35450363]
[1762181113370,0.4843,3717.7,3717.6,3.35450363]
[1762181113572,0.48426,3718.0,3717.6,3.59290363]
[1762181113871,0.48625213,3718.3,3718.2,0.1444]
[1762181114073,0.48625213,3718.3,3717.6,3.35450363]
[1762181114074,0.4843,3717.7,3717.6,3.35450363]
[1762181114670,0.4843,3717.7,3717.6,0.14670363]
[1762181115370,0.75028769,3717.7,3717.6,0.14670363]
[1762181115868,0.26598769,3717.7,3717.6,0.14670363]
[1762181116070,3.20983213,3718.3,3718.2,0.1412]
[1762181116269,4.58623282,3718.3,3718.2,0.1412]
[1762181117572,0.26815922,3718.3,3718.2,0.3751]
[1762181117773,0.00203213,3718.3,3718.2,0.3751]
[1762181118376,0.48625213,3718.3,3718.2,0.3751]
[1762181118770,0.00203213,3718.3,3718.2,0.3751]
[1762181119565,3.2078,3719.1,3719.0,0.2339]
[1762181119772,3.95734565,3719.1,3719.0,0.2339]
[1762181120369,3.95734565,3719.1,3718.8,0.1412]
[1762181120370,0.48414,3718.9,3718.8,0.1412]
[1762181120571,0.00335182,3718.9,3718.8,3.349]
[1762181120776,0.00335182,3718.9,3718.8,3.5829]